Workbook

Sheet Úvod

Sheet Charakteristika
A1: i | B1: rok = t | C1: y | D1: x | E1: x^2 | F1: d(y) | G1: k(y) | H1: xy | I1: n^(xi)
A2: 1 | B2: 2007 | C2: 17560.05 | D2: 1 | E2: =D2*D2 -> 1 | F2: - | G2: - | H2: =D2*C2 -> 17560.05 | I2: =B18+B19*D2 -> 19453.06382
A3: 2 | B3: 2008 | C3: 20851.17 | D3: 2 | E3: =D3*D3 -> 4 | F3: =C3-C2 -> 3291.12 | G3: =C3/C2 -> 1.187420879 | H3: =D3*C3 -> 41702.34 | I3: =B18+B19*D3 -> 20361.8763
A4: 3 | B4: 2009 | C4: 27204.25 | D4: 3 | E4: 9 | F4: =C4-C3 -> 6353.08 | G4: =C4/C3 -> 1.304686979 | H4: 81612.75 | I4: =B18+B19*D4 -> 21270.68879
A5: 4 | B5: 2010 | C5: 23703 | D5: 4 | E5: 16 | F5: -3501.25 | G5: 0.8712976833 | H5: 94812 | I5: =B18+B19*D5 -> 22179.50127
A6: 5 | B6: 2011 | C6: 20201.2 | D6: 5 | E6: 25 | F6: -3501.8 | G6: 0.8522634266 | H6: 101006 | I6: =B18+B19*D6 -> 23088.31376
A7: 6 | B7: 2012 | C7: 18543.56 | D7: 6 | E7: 36 | F7: -1657.64 | G7: 0.9179434885 | H7: 111261.36 | I7: =B18+B19*D7 -> 23997.12624
A8: 7 | B8: 2013 | C8: 23186.19 | D8: 7 | E8: 49 | F8: 4642.63 | G8: 1.250363469 | H8: 162303.33 | I8: =B18+B19*D8 -> 24905.93873
A9: 8 | B9: 2014 | C9: 27215.73 | D9: 8 | E9: 64 | F9: 4029.54 | G9: 1.173790519 | H9: 217725.84 | I9: =B18+B19*D9 -> 25814.75121
A10: 9 | B10: 2015 | C10: 27777.54 | D10: 9 | E10: 81 | F10: 561.81 | G10: 1.020642841 | H10: 249997.86 | I10: =B18+B19*D10 -> 26723.5637
A11: 10 | B11: 2016 | C11: 29184.51 | D11: 10 | E11: 100 | F11: 1406.97 | G11: 1.050651354 | H11: 291845.1 | I11: =B18+B19*D11 -> 27632.37618
A12: Ʃ | C12: =SUM(C2:C11) -> 235427.2 | D12: =SUM(D2:D11) -> 55 | E12: =SUM(E2:E11) -> 385 | F12: =SUM(F2:F11) -> 11624.46 | H12: =SUM(H2:H11) -> 1369826.63 | I12: =B18+B19*11 -> 28541.18867
I13: =B18+B19*12 -> 29450.00115
A14: prumer y | B14: =C12/D11 -> 23542.72
A15: prumer x | B15: =D12/D11 -> 5.5
A16: prum z 1d | B16: =(C11-C2)/(D11-D2) -> 1291.606667
A17: prum koef | B17: =(C11/C2)^(1/(D11-D2)) -> 1.058069202
A18: b1 | B18: =B14-(B19*B15) -> 18544.25133
A19: b2 | B19: =(H12-(D11*B15*B14))/(E12-(D11*B15^2)) -> 908.8124848
A20: id | B20: =1-(((C2-I2)^2)+((C3-I3)^2)+((C4-I4)^2)+((C5-I5)^2)+((C6-I6)^2)+((C7-I7)^2)+((C8-I8)^2)+((C9-I9)^2)+((C10-I10)^2)+((C11-I11)^2))/(((C2-B14)^2)+((C3-B14)^2)+((C4-B14)^2)+((C5-B14)^2)+((C6-B14)^2)+((C7-B14)^2)+((C8-B14)^2)+((C9-B14)^2)+((C10-B14)^2)+((C11-B14)^2)) -> 0.4367721894
